[Event "FIDE Grand Swiss 2023"]
[Site "Villa Marina, Douglas, Isle of Man"]
[Date "2023.11.03"]
[Round "9.56"]
[White "Kolbus, Dietmar"]
[Black "Fawzy, Adham"]
[Result "1/2-1/2"]
[WhiteElo "2225"]
[BlackElo "2535"]
[EventDate "2023.10.25"]
[ECO "A28"]
[PlyCount "153"]
[BlackClock "00:33:54"]
[BlackFideId "10613129"]
[TimeControl "40/100 + 20/50 + 15 + 30s/move"]
[WhiteClock "00:03:10"]
[WhiteFideId "4610628"]

1.c4 {[%clk 01:40:58][%emt 00:00:01]} 1...e5 {[%clk 01:40:31][%emt 00:00:30]} 
2.Nc3 {[%clk 01:40:42][%emt 00:00:45]} 2...Nf6 {[%clk 01:40:34][%emt 00:00:27]} 
3.Nf3 {[%clk 01:40:38][%emt 00:00:35]} 3...Nc6 {[%clk 01:40:40][%emt 00:00:24]} 
4.d3 {[%clk 01:35:48][%emt 00:05:19]} 4...d5 {[%clk 01:38:58][%emt 00:02:13]} 
5.cxd5 {[%clk 01:36:04][%emt 00:00:14]} 5...Nxd5 {[%clk 01:39:24][%emt
00:00:04]} 6.e3 {[%clk 01:33:17][%emt 00:03:15]} 6...Be7 {[%clk 01:33:08][%emt
00:06:48]} 7.Be2 {[%clk 01:33:35][%emt 00:00:11]} 7...Be6 {[%clk 01:33:14][%emt
00:00:25]} 8.O-O {[%clk 01:32:26][%emt 00:01:39]} 8...O-O {[%clk 01:32:37][%emt
00:01:06]} 9.e4 {[%clk 01:23:57][%emt 00:08:59]} 9...Nf6 {[%clk 01:29:39][%emt
00:03:29]} 10.h3 {[%clk 01:07:22][%emt 00:17:05]} 10...Bc5 {[%clk 01:28:19][%emt
00:01:49]} 11.Na4 {[%clk 01:04:28][%emt 00:03:25]} 11...Bd4 {[%clk
01:26:13][%emt 00:02:36]} 12.Nxd4 {[%clk 01:04:26][%emt 00:00:32]} 12...Nxd4 
{[%clk 01:26:06][%emt 00:00:37]} 13.Nc5 {[%clk 01:04:04][%emt 00:00:52]} 
13...Qd6 {[%clk 01:24:28][%emt 00:02:08]} 14.Nxe6 {[%clk 01:03:59][%emt
00:00:35]} 14...fxe6 {[%clk 01:22:02][%emt 00:02:57]} 15.Be3 {[%clk
01:03:11][%emt 00:01:16]} 15...c5 {[%clk 01:17:45][%emt 00:04:48]} 16.Bxd4 
{[%clk 01:01:56][%emt 00:01:45]} 16...Qxd4 {[%clk 01:18:03][%emt 00:00:13]} 
17.Qb3 {[%clk 01:01:32][%emt 00:00:53]} 17...Qd6 {[%clk 01:17:39][%emt
00:00:54]} 18.Rac1 {[%clk 00:57:40][%emt 00:04:21]} 18...b6 {[%clk
01:17:57][%emt 00:00:14]} 19.Bg4 {[%clk 00:47:47][%emt 00:10:22]} 19...Rae8 
{[%clk 01:13:36][%emt 00:04:52]} 20.Qc4 {[%clk 00:46:41][%emt 00:01:34]} 
20...Qe7 {[%clk 01:05:05][%emt 00:09:01]} 21.Bd1 {[%clk 00:36:05][%emt
00:11:07]} 21...Kh8 {[%clk 01:01:01][%emt 00:04:35]} 22.Qc3 {[%clk
00:31:19][%emt 00:05:15]} 22...Qd6 {[%clk 01:00:17][%emt 00:01:14]} 23.Ba4 
{[%clk 00:19:05][%emt 00:12:45]} 23...Rd8 {[%clk 00:57:55][%emt 00:02:51]} 
24.Bb5 {[%clk 00:18:35][%emt 00:00:59]} 24...Nh5 {[%clk 00:56:48][%emt
00:01:37]} 25.Rfe1 {[%clk 00:16:31][%emt 00:02:32]} 25...Nf4 {[%clk
00:50:24][%emt 00:06:57]} 26.Re3 {[%clk 00:13:55][%emt 00:03:03]} 26...Rf6 
{[%clk 00:48:59][%emt 00:01:57]} 27.Kh2 {[%clk 00:13:42][%emt 00:00:41]} 
27...Rdf8 {[%clk 00:46:01][%emt 00:03:30]} 28.Rc2 {[%clk 00:13:15][%emt
00:00:56]} 28...h5 {[%clk 00:40:44][%emt 00:05:48]} 29.g3 {[%clk 00:10:46][%emt
00:02:59]} 29...Ng6 {[%clk 00:40:50][%emt 00:00:25]} 30.Kg2 {[%clk
00:10:55][%emt 00:00:19]} 30...h4 {[%clk 00:41:18][%emt 00:00:04]} 31.a3 {[%clk
00:11:02][%emt 00:00:23]} 31...a5 {[%clk 00:40:14][%emt 00:01:34]} 32.Qe1 
{[%clk 00:09:22][%emt 00:02:09]} 32...Qd4 {[%clk 00:38:00][%emt 00:02:45]} 
33.Ree2 {[%clk 00:07:16][%emt 00:02:34]} 33...Rf3 {[%clk 00:37:23][%emt
00:01:09]} 34.Bc4 {[%clk 00:04:21][%emt 00:03:25]} 34...R8f6 {[%clk
00:32:11][%emt 00:05:42]} 35.Bb5 {[%clk 00:02:49][%emt 00:02:02]} 35...Kg8 
{[%clk 00:25:56][%emt 00:06:45]} 36.Bc4 {[%clk 00:03:01][%emt 00:00:17]} 
36...Kf7 {[%clk 00:23:45][%emt 00:02:41]} 37.Bb5 {[%clk 00:03:10][%emt
00:00:21]} 37...Ke7 {[%clk 00:22:22][%emt 00:01:53]} 38.Bc4 {[%clk
00:03:27][%emt 00:00:13]} 38...hxg3 {[%clk 00:15:26][%emt 00:07:26]} 39.fxg3 
{[%clk 00:03:47][%emt 00:00:09]} 39...Rf1 {[%clk 00:15:29][%emt 00:00:28]} 
40.Qxf1 {[%clk 00:04:01][%emt 00:00:16]} 40...Rxf1 {[%clk 00:15:57][%emt
00:00:02]} 41.Kxf1 {[%clk 00:04:21][%emt 00:00:10]} 41...Nh8 {[%clk
00:15:23][%emt 00:01:04]} 42.Kg2 {[%clk 00:00:36][%emt 00:04:14]} 42...Qd7 
{[%clk 00:15:42][%emt 00:00:13]} 43.Rcd2 {[%clk 00:43:19][%emt 00:07:45]} 
43...Nf7 {[%clk 01:05:59][%emt 00:00:14]} 44.Rf2 {[%clk 00:42:18][%emt
00:01:30]} 44...Nd6 {[%clk 01:06:21][%emt 00:00:09]} 45.Rfe2 {[%clk
00:39:51][%emt 00:02:57]} 45...Qa4 {[%clk 01:05:35][%emt 00:01:16]} 46.Rc2 
{[%clk 00:22:33][%emt 00:17:47]} 46...b5 {[%clk 01:05:23][%emt 00:00:44]} 
47.Ba2 {[%clk 00:22:36][%emt 00:00:26]} 47...Qd4 {[%clk 01:05:46][%emt
00:00:07]} 48.Rcd2 {[%clk 00:22:39][%emt 00:00:27]} 48...a4 {[%clk
01:04:28][%emt 00:01:49]} 49.h4 {[%clk 00:22:26][%emt 00:00:42]} 49...b4 {[%clk
01:04:07][%emt 00:00:51]} 50.axb4 {[%clk 00:22:48][%emt 00:00:09]} 50...cxb4 
{[%clk 01:04:12][%emt 00:00:25]} 51.Bc4 {[%clk 00:22:54][%emt 00:00:22]} 
51...b3 {[%clk 01:01:25][%emt 00:03:18]} 52.Kh2 {[%clk 00:22:07][%emt 00:01:16]} 
52...Ne8 {[%clk 01:00:20][%emt 00:01:37]} 53.Rd1 {[%clk 00:21:29][%emt
00:01:05]} 53...Nf6 {[%clk 00:55:54][%emt 00:04:59]} 54.Kh3 {[%clk
00:21:46][%emt 00:00:12]} 54...Qd7 {[%clk 00:55:27][%emt 00:00:57]} 55.Ra1 
{[%clk 00:18:07][%emt 00:04:09]} 55...Qe8 {[%clk 00:53:30][%emt 00:02:27]} 
56.Rf2 {[%clk 00:17:35][%emt 00:01:01]} 56...Kd6 {[%clk 00:51:13][%emt
00:02:48]} 57.Rc1 {[%clk 00:13:52][%emt 00:04:11]} 57...Qc6 {[%clk
00:46:55][%emt 00:04:51]} 58.Re2 {[%clk 00:12:07][%emt 00:02:13]} 58...Ke7 
{[%clk 00:45:19][%emt 00:02:07]} 59.Ra1 {[%clk 00:11:20][%emt 00:01:16]} 
59...Nd7 {[%clk 00:42:36][%emt 00:03:15]} 60.Rf1 {[%clk 00:11:24][%emt
00:00:23]} 60...Nb6 {[%clk 00:40:11][%emt 00:02:57]} 61.Rff2 {[%clk
00:10:26][%emt 00:01:27]} 61...Qe8 {[%clk 00:40:13][%emt 00:00:30]} 62.Re1 
{[%clk 00:06:17][%emt 00:04:36]} 62...Qh5 {[%clk 00:39:45][%emt 00:01:00]} 
63.Kg2 {[%clk 00:06:04][%emt 00:00:42]} 63...Qg4 {[%clk 00:38:31][%emt
00:01:45]} 64.Bb5 {[%clk 00:06:16][%emt 00:00:17]} 64...g5 {[%clk 00:38:11][%emt
00:00:51]} 65.hxg5 {[%clk 00:06:39][%emt 00:00:07]} 65...Qxg5 {[%clk
00:38:39][%emt 00:00:02]} 66.Rfe2 {[%clk 00:04:39][%emt 00:02:27]} 66...Kd6 
{[%clk 00:38:42][%emt 00:00:31]} 67.Ra1 {[%clk 00:04:45][%emt 00:00:23]} 
67...Kc5 {[%clk 00:35:50][%emt 00:03:22]} 68.Bxa4 {[%clk 00:04:17][%emt
00:00:58]} 68...Kb4 {[%clk 00:36:19][%emt 00:00:01]} 69.Bc6 {[%clk
00:04:33][%emt 00:00:14]} 69...Qd8 {[%clk 00:36:08][%emt 00:00:42]} 70.Rd2 
{[%clk 00:03:10][%emt 00:01:51]} 70...Qc8 {[%clk 00:35:16][%emt 00:01:24]} 
71.Rc1 {[%clk 00:03:10][%emt 00:00:28]} 71...Qf8 {[%clk 00:35:39][%emt
00:00:08]} 72.Rc3 {[%clk 00:02:26][%emt 00:01:13]} 72...Qh6 {[%clk
00:35:53][%emt 00:00:17]} 73.Re2 {[%clk 00:02:35][%emt 00:00:21]} 73...Qg5 
{[%clk 00:34:30] [%emt 00:01:54]} 74.Be8 {[%clk 00:02:17] [%emt 00:00:48]} 
74...Qd8 {[%clk 00:34:21] [%emt 00:00:39]} 75.Bc6 {[%clk 00:02:31] [%emt
00:00:15]} 75...Qg5 {[%clk 00:34:30][%emt 00:01:54]} 76.Be8 {[%clk
00:02:17][%emt 00:00:48]} 76...Qd8 {[%clk 00:34:21][%emt 00:00:39]} 77.Bc6 
{[%clk 00:02:31][%emt 00:00:15]} 1/2-1/2

[Event "FIDE Grand Swiss 2023"]
[Site "Villa Marina, Douglas, Isle of Man"]
[Date "2023.11.03"]
[Round "9.57"]
[White "Fier, Alexandr"]
[Black "Greenfeld, Alon"]
[Result "0-1"]
[WhiteElo "2574"]
[BlackElo "2455"]
[EventDate "2023.10.25"]
[ECO "B38"]
[PlyCount "80"]
[BlackFideId "2800039"]
[TimeControl "40/100 + 20/50 + 15 + 30s/move"]
[WhiteFideId "2107139"]

1.e4 {[%clk 01:40:58][%emt 00:00:01]} 1...c5 {[%clk 01:37:48][%emt 00:03:12]} 
2.Nf3 {[%clk 01:41:19][%emt 00:00:09]} 2...Nc6 {[%clk 01:36:36][%emt 00:01:41]} 
3.d4 {[%clk 01:41:45][%emt 00:00:05]} 3...cxd4 {[%clk 01:36:59][%emt 00:00:07]} 
4.Nxd4 {[%clk 01:42:12][%emt 00:00:02]} 4...g6 {[%clk 01:35:56][%emt 00:01:34]} 
5.c4 {[%clk 01:42:27][%emt 00:00:15]} 5...Bg7 {[%clk 01:33:17][%emt 00:03:09]} 
6.Be3 {[%clk 01:42:16][%emt 00:00:41]} 6...Nf6 {[%clk 01:33:36][%emt 00:00:11]} 
7.Nc3 {[%clk 01:42:42][%emt 00:00:04]} 7...O-O {[%clk 01:32:52][%emt 00:01:13]} 
8.f3 {[%clk 01:42:54][%emt 00:00:19]} 8...d6 {[%clk 01:20:57][%emt 00:12:25]} 
9.Be2 {[%clk 01:43:19][%emt 00:00:04]} 9...Nxd4 {[%clk 01:09:58][%emt 00:11:30]} 
10.Bxd4 {[%clk 01:43:42][%emt 00:00:07]} 10...Be6 {[%clk 01:10:15][%emt
00:00:12]} 11.O-O {[%clk 01:42:07][%emt 00:02:06]} 11...Qa5 {[%clk
01:08:40][%emt 00:02:04]} 12.Rc1 {[%clk 01:42:18][%emt 00:00:20]} 12...Rac8 
{[%clk 00:57:39][%emt 00:11:31]} 13.b3 {[%clk 01:42:43][%emt 00:00:06]} 
13...Nd7 {[%clk 00:57:50][%emt 00:00:18]} 14.Kh1 {[%clk 01:41:42][%emt
00:01:30]} 14...a6 {[%clk 00:54:43][%emt 00:03:38]} 15.f4 {[%clk 01:41:56][%emt
00:00:16]} 15...Bxd4 {[%clk 00:54:41][%emt 00:00:31]} 16.Qxd4 {[%clk
01:42:23][%emt 00:00:04]} 16...f6 {[%clk 00:55:02][%emt 00:00:09]} 17.Qe3 
{[%clk 01:39:29][%emt 00:03:24]} 17...Kg7 {[%clk 00:39:26][%emt 00:16:06]} 
18.Qg3 {[%clk 01:35:25][%emt 00:04:35]} 18...b5 {[%clk 00:30:54][%emt 00:09:01]} 
19.Bg4 {[%clk 01:31:29][%emt 00:04:26]} 19...Bxg4 {[%clk 00:30:43][%emt
00:00:41]} 20.Qxg4 {[%clk 01:31:56][%emt 00:00:04]} 20...Nb6 {[%clk
00:30:40][%emt 00:00:32]} 21.Qe6 {[%clk 01:31:59][%emt 00:00:27]} 21...bxc4 
{[%clk 00:23:28][%emt 00:07:42]} 22.Qxe7+ {[%clk 01:23:15][%emt 00:09:14]} 
22...Rf7 {[%clk 00:23:50][%emt 00:00:08]} 23.b4 {[%clk 01:23:43][%emt 00:00:03]} 
23...Qxb4 {[%clk 00:24:01][%emt 00:00:19]} 24.Qe6 {[%clk 01:24:09][%emt
00:00:03]} 24...Rcc7 {[%clk 00:23:27][%emt 00:01:03]} 25.e5 {[%clk
01:19:59][%emt 00:04:41]} 25...fxe5 {[%clk 00:14:01][%emt 00:09:56]} 26.fxe5 
{[%clk 01:16:57][%emt 00:03:32]} 26...Qxc3 {[%clk 00:13:46][%emt 00:00:45]} 
27.exd6 {[%clk 01:13:09][%emt 00:04:18]} 27...Rxf1+ {[%clk 00:10:06][%emt
00:04:10]} 28.Rxf1 {[%clk 01:13:37][%emt 00:00:02]} 28...Rd7 {[%clk
00:10:02][%emt 00:00:33]} 29.Qe8 {[%clk 01:14:02][%emt 00:00:05]} 29...h5 
{[%clk 00:09:09][%emt 00:01:23]} 30.h3 {[%clk 01:11:18][%emt 00:03:15]} 
30...Qd4 {[%clk 00:08:54][%emt 00:00:44]} 31.Re1 {[%clk 01:11:27][%emt
00:00:22]} 31...Rf7 {[%clk 00:06:30][%emt 00:02:54]} 32.Qc6 {[%clk
01:09:52][%emt 00:02:05]} 32...c3 {[%clk 00:06:13][%emt 00:00:46]} 33.Re7 
{[%clk 01:10:18][%emt 00:00:05]} 33...c2 {[%clk 00:03:32][%emt 00:03:10]} 
34.Qxc2 {[%clk 01:09:51][%emt 00:00:58]} 34...Rxe7 {[%clk 00:02:59][%emt
00:01:03]} 35.dxe7 {[%clk 01:10:16][%emt 00:00:05]} 35...Qa1+ {[%clk
00:03:25][%emt 00:00:03]} 36.Kh2 {[%clk 01:10:26][%emt 00:00:20]} 36...Qe5+ 
{[%clk 00:03:53][%emt 00:00:03]} 37.Kh1 {[%clk 01:10:52][%emt 00:00:04]} 
37...Qxe7 {[%clk 00:04:09][%emt 00:00:13]} 38.Qc6 {[%clk 01:11:20][%emt
00:00:02]} 38...Qe1+ {[%clk 00:03:26][%emt 00:01:13]} 39.Kh2 {[%clk
01:11:48][%emt 00:00:03]} 39...Qe5+ {[%clk 00:03:37][%emt 00:00:19]} 40.Kh1 
{[%clk 01:12:14][%emt 00:00:04]} 40...Qb5 {[%clk 00:02:26][%emt 00:01:40]} 0-1

[Event "FIDE Grand Swiss 2023"]
[Site "Villa Marina, Douglas, Isle of Man"]
[Date "2023.11.04"]
[Round "10.3"]
[White "Esipenko, Andrey"]
[Black "Maghsoodloo, Parham"]
[Result "1-0"]
[WhiteElo "2683"]
[BlackElo "2707"]
[EventDate "2023.10.25"]
[ECO "E00"]
[PlyCount "79"]
[BlackClock "00:00:02"]
[BlackFideId "12539929"]
[TimeControl "40/100 + 20/50 + 15 + 30s/move"]
[WhiteClock "00:02:16"]
[WhiteFideId "24175439"]

1.d4 {[%clk 01:40:51][%emt 00:00:08]} 1...Nf6 {[%clk 01:40:54][%emt 00:00:06]} 
2.c4 {[%clk 01:41:07][%emt 00:00:15]} 2...e6 {[%clk 01:41:17][%emt 00:00:07]} 
3.g3 {[%clk 01:41:21][%emt 00:00:15]} 3...d5 {[%clk 01:41:17][%emt 00:00:30]} 
4.Nf3 {[%clk 01:41:43][%emt 00:00:08]} 4...Bb4+ {[%clk 01:41:42][%emt 00:00:05]} 
5.Bd2 {[%clk 01:42:06][%emt 00:00:07]} 5...Be7 {[%clk 01:42:07][%emt 00:00:05]} 
6.Bg2 {[%clk 01:42:28][%emt 00:00:08]} 6...O-O {[%clk 01:42:32][%emt 00:00:06]} 
7.O-O {[%clk 01:42:23][%emt 00:00:35]} 7...h6 {[%clk 01:42:52][%emt 00:00:10]} 
8.Qc2 {[%clk 01:39:08][%emt 00:03:44]} 8...c6 {[%clk 01:43:15][%emt 00:00:07]} 
9.Bf4 {[%clk 01:38:23][%emt 00:01:16]} 9...Nbd7 {[%clk 01:43:27][%emt 00:00:17]} 
10.Rd1 {[%clk 01:38:33][%emt 00:00:21]} 10...a5 {[%clk 01:43:41][%emt 00:00:15]} 
11.Nc3 {[%clk 01:35:14][%emt 00:03:49]} 11...b6 {[%clk 01:43:58][%emt 00:00:14]} 
12.Ne5 {[%clk 01:15:35][%emt 00:20:08]} 12...Nxe5 {[%clk 01:44:22][%emt
00:00:06]} 13.dxe5 {[%clk 01:15:15][%emt 00:00:50]} 13...Nd7 {[%clk
01:44:46][%emt 00:00:06]} 14.cxd5 {[%clk 01:11:12][%emt 00:04:33]} 14...cxd5 
{[%clk 01:45:11][%emt 00:00:06]} 15.e4 {[%clk 01:05:28][%emt 00:06:13]} 15...d4 
{[%clk 01:45:30][%emt 00:00:12]} 16.Rxd4 {[%clk 00:53:05][%emt 00:12:53]} 
16...Bc5 {[%clk 01:33:58][%emt 00:12:01]} 17.Rdd1 {[%clk 00:52:30][%emt
00:01:06]} 17...g5 {[%clk 01:34:22][%emt 00:00:06]} 18.Bc1 {[%clk 00:50:40][%emt
00:02:20]} 18...Qc7 {[%clk 01:21:52][%emt 00:12:59]} 19.Na4 {[%clk
00:49:14][%emt 00:01:55]} 19...Qxe5 {[%clk 01:22:15][%emt 00:00:08]} 20.Nxc5 
{[%clk 00:48:10][%emt 00:01:35]} 20...Nxc5 {[%clk 01:15:16][%emt 00:07:29]} 
21.Be3 {[%clk 00:44:48][%emt 00:03:51]} 21...Ba6 {[%clk 01:11:33][%emt
00:04:14]} 22.Bd4 {[%clk 00:43:19][%emt 00:01:58]} 22...Qc7 {[%clk
01:09:57][%emt 00:02:06]} 23.Qc3 {[%clk 00:42:14][%emt 00:01:34]} 23...Kh7 
{[%clk 01:04:10][%emt 00:06:18]} 24.Be5 {[%clk 00:33:17][%emt 00:09:27]} 
24...Qa7 {[%clk 01:04:26][%emt 00:00:15]} 25.Qf3 {[%clk 00:32:50][%emt
00:00:54]} 25...Rg8 {[%clk 00:54:42][%emt 00:10:17]} 26.Rd6 {[%clk
00:31:22][%emt 00:01:56]} 26...g4 {[%clk 00:51:12][%emt 00:04:01]} 27.Qe3 
{[%clk 00:29:37][%emt 00:02:14]} 27...Rad8 {[%clk 00:48:27][%emt 00:03:15]} 
28.Rad1 {[%clk 00:21:16][%emt 00:08:53]} ( 28.Bg7 Kxg7 29.Qd4+ e5 30.Qxe5+ Kh7 
31.Qf5+ ) 28...Qe7 {[%clk 00:44:27][%emt 00:04:29]} 29.h3 {[%clk 00:13:00][%emt
00:08:46]} 29...Rxd6 {[%clk 00:34:03][%emt 00:10:54]} 30.Bxd6 {[%clk
00:12:28][%emt 00:01:02]} 30...Qg5 {[%clk 00:32:52][%emt 00:01:42]} 31.Bf4 
{[%clk 00:11:52][%emt 00:01:06]} 31...Qg7 {[%clk 00:32:32][%emt 00:00:48]} 
32.Rd6 {[%clk 00:11:59][%emt 00:00:23]} 32...Qxb2 {[%clk 00:31:21][%emt
00:01:41]} 33.hxg4 {[%clk 00:12:05][%emt 00:00:25]} 33...Rxg4 {[%clk
00:28:18][%emt 00:03:34]} 34.Bf3 {[%clk 00:11:26][%emt 00:01:08]} 34...h5 
{[%clk 00:24:44][%emt 00:04:04]} 35.Rd4 {[%clk 00:07:17][%emt 00:04:36]} 
35...Bb7 {[%clk 00:21:23][%emt 00:03:54]} 36.Kh2 {[%clk 00:04:56][%emt
00:02:50]} 36...Qb1 {[%clk 00:10:54][%emt 00:11:01]} 37.Be5 {[%clk
00:02:37][%emt 00:02:48]} 37...Bxe4 {[%clk 00:03:08][%emt 00:08:17]} 38.Rd1 
{[%clk 00:02:37][%emt 00:00:29]} 38...Qc2 {[%clk 00:01:14][%emt 00:02:25]} 
39.Bxg4 {[%clk 00:02:30][%emt 00:00:36]} 39...hxg4 {[%clk 00:00:32][%emt
00:01:13]} 40.Rd8 {[%clk 00:02:16] [%emt 00:00:43]} 1-0

[Event "FIDE Grand Swiss 2023"]
[Site "Villa Marina, Douglas, Isle of Man"]
[Date "2023.11.04"]
[Round "10.4"]
[White "Keymer, Vincent"]
[Black "Fedoseev, Vladimir"]
[Result "1-0"]
[WhiteElo "2717"]
[BlackElo "2691"]
[EventDate "2023.10.25"]
[ECO "E17"]
[PlyCount "97"]
[BlackClock "00:44:23"]
[BlackFideId "24130737"]
[TimeControl "40/100 + 20/50 + 15 + 30s/move"]
[WhiteClock "00:35:23"]
[WhiteFideId "12940690"]

1.d4 {[%clk 01:40:57][%emt 00:00:03]} 1...Nf6 {[%clk 01:40:52][%emt 00:00:08]} 
2.c4 {[%clk 01:41:13][%emt 00:00:15]} 2...e6 {[%clk 01:41:15][%emt 00:00:06]} 
3.Nf3 {[%clk 01:41:39][%emt 00:00:04]} 3...b6 {[%clk 01:41:36][%emt 00:00:09]} 
4.g3 {[%clk 01:42:04][%emt 00:00:06]} 4...Bb7 {[%clk 01:41:58][%emt 00:00:07]} 
5.Bg2 {[%clk 01:42:29][%emt 00:00:05]} 5...Be7 {[%clk 01:42:21][%emt 00:00:07]} 
6.O-O {[%clk 01:42:53][%emt 00:00:07]} 6...O-O {[%clk 01:42:45][%emt 00:00:06]} 
7.Re1 {[%clk 01:42:54][%emt 00:00:29]} 7...Re8 {[%clk 01:43:08][%emt 00:00:06]} 
8.Nc3 {[%clk 01:37:47][%emt 00:05:38]} 8...d5 {[%clk 01:43:24][%emt 00:00:13]} 
9.cxd5 {[%clk 01:32:39][%emt 00:05:38]} 9...Nxd5 {[%clk 01:43:52][%emt
00:00:02]} 10.Bd2 {[%clk 01:24:24][%emt 00:08:45]} 10...Na6 {[%clk
01:30:20][%emt 00:14:01]} 11.e4 {[%clk 01:11:01][%emt 00:13:55]} 11...Nxc3 
{[%clk 01:27:31][%emt 00:03:19]} 12.bxc3 {[%clk 01:09:39][%emt 00:01:52]} 
12...c5 {[%clk 01:27:43][%emt 00:00:17]} 13.Qa4 {[%clk 01:07:20][%emt 00:02:49]} 
13...cxd4 {[%clk 01:19:48][%emt 00:08:26]} 14.cxd4 {[%clk 01:07:38][%emt
00:00:13]} 14...Bd6 {[%clk 01:19:04][%emt 00:01:12]} 15.Rac1 {[%clk
00:54:58][%emt 00:13:10]} 15...h6 {[%clk 01:15:37][%emt 00:03:57]} 16.h4 {[%clk
00:51:49][%emt 00:03:40]} 16...Rf8 {[%clk 01:01:25][%emt 00:14:41]} 17.g4 
{[%clk 00:42:58][%emt 00:09:21]} 17...Qe7 {[%clk 00:51:57][%emt 00:09:58]} 
18.Bf1 {[%clk 00:38:25][%emt 00:05:03]} 18...Nc7 {[%clk 00:47:47][%emt
00:04:40]} 19.Qb3 {[%clk 00:38:34][%emt 00:00:21]} 19...Qd7 {[%clk
00:39:56][%emt 00:08:21]} 20.g5 {[%clk 00:36:32][%emt 00:02:32]} 20...Kh8 
{[%clk 00:37:40][%emt 00:02:46]} 21.gxh6 {[%clk 00:24:30][%emt 00:12:33]} 
21...f6 {[%clk 00:31:37][%emt 00:06:32]} 22.Bg2 {[%clk 00:20:59][%emt 00:04:01]} 
22...gxh6 {[%clk 00:27:57][%emt 00:04:10]} 23.Qe3 {[%clk 00:19:25][%emt
00:02:04]} 23...Qh7 {[%clk 00:25:47][%emt 00:02:40]} 24.h5 {[%clk 00:19:37][%emt
00:00:19]} 24...Rg8 {[%clk 00:18:56][%emt 00:07:20]} 25.Nh4 {[%clk
00:20:01][%emt 00:00:06]} 25...Rg4 {[%clk 00:19:16][%emt 00:00:10]} 26.Ng6+ 
{[%clk 00:19:41][%emt 00:00:51]} 26...Kg8 {[%clk 00:19:40][%emt 00:00:05]} 
27.Qh3 {[%clk 00:11:41][%emt 00:08:31]} 27...f5 {[%clk 00:19:56][%emt 00:00:13]} 
28.Kh1 {[%clk 00:12:04][%emt 00:00:07]} 28...Ne8 {[%clk 00:15:25][%emt
00:05:02]} 29.Rg1 {[%clk 00:11:03][%emt 00:01:31]} 29...Qd7 {[%clk
00:10:29][%emt 00:05:25]} 30.Bf3 {[%clk 00:06:26][%emt 00:05:07]} 30...Nf6 
{[%clk 00:10:33][%emt 00:00:25]} 31.e5 {[%clk 00:04:24][%emt 00:02:33]} 
31...Ne4 {[%clk 00:09:56][%emt 00:01:07]} 32.Bxe4 {[%clk 00:04:17][%emt
00:00:37]} 32...Bxe4+ {[%clk 00:10:03][%emt 00:00:23]} 33.Kh2 {[%clk
00:02:42][%emt 00:02:05]} 33...Bc5 {[%clk 00:05:38][%emt 00:04:55]} 34.Rxg4 
{[%clk 00:02:34][%emt 00:00:38]} 34...fxg4 {[%clk 00:05:49][%emt 00:00:19]} 
35.Qxg4 {[%clk 00:03:00][%emt 00:00:03]} 35...Bf5 {[%clk 00:06:07][%emt
00:00:13]} 36.Qg2 {[%clk 00:01:27][%emt 00:02:03]} 36...Rd8 {[%clk
00:06:31][%emt 00:00:05]} 37.Rg1 {[%clk 00:01:10][%emt 00:00:48]} 37...Qxd4 
{[%clk 00:04:45][%emt 00:02:16]} 38.Be3 {[%clk 00:01:13][%emt 00:00:28]} 
38...Qa4 {[%clk 00:03:44][%emt 00:01:31]} 39.Ne7+ {[%clk 00:01:18][%emt
00:00:25]} 39...Kf7 {[%clk 00:03:57][%emt 00:00:16]} 40.Nxf5 {[%clk
00:00:41][%emt 00:01:07]} 40...exf5 {[%clk 00:04:17][%emt 00:00:09]} 41.Qg6+ 
{[%clk 00:41:03][%emt 00:10:08]} 41...Ke7 {[%clk 00:54:44][%emt 00:00:04]} 
42.Qf6+ {[%clk 00:36:39][%emt 00:04:54]} 42...Kd7 {[%clk 00:55:02][%emt
00:00:12]} 43.Rg7+ {[%clk 00:36:55][%emt 00:00:13]} 43...Kc8 {[%clk 00:55:32]} 
44.Qxf5+ {[%clk 00:37:15][%emt 00:00:11]} 44...Kb8 {[%clk 00:55:53][%emt
00:00:08]} 45.Qf7 {[%clk 00:34:45][%emt 00:03:01]} 45...Qh4+ {[%clk
00:54:38][%emt 00:01:44]} 46.Kg2 {[%clk 00:35:12][%emt 00:00:04]} 46...Qe4+ 
{[%clk 00:55:01][%emt 00:00:07]} 47.Qf3 {[%clk 00:34:47][%emt 00:00:55]} 
47...Qd5 {[%clk 00:53:22][%emt 00:02:09]} 48.Qxd5 {[%clk 00:34:58][%emt
00:00:18]} 48...Rxd5 {[%clk 00:53:48][%emt 00:00:04]} 49.Bxh6 {[%clk
00:35:23][%emt 00:00:06]} 1-0